bitfinex/quotes_BTCUSD_20251230
["timestamp","ask_amount","ask_price","bid_price","bid_amount"]
[1767118972080,0.27223,88423.0,88414.0,6.469e-05]
[1767118972667,0.82338261,88426.0,88414.0,6.469e-05]
[1767118972882,0.82338261,88424.0,88414.0,0.01137511]
[1767118973758,0.82338261,88424.0,88415.0,0.01131029]
[1767118973962,0.82338261,88424.0,88416.0,0.01131017]
[1767118974239,0.82338261,88424.0,88415.0,0.01131029]
[1767118974446,0.27418,88424.0,88415.0,0.01132]
[1767118974616,0.27418,88420.0,88402.0,0.06099344]
[1767118974937,0.27418,88415.0,88408.0,0.01132]
[1767118976689,0.27418,88415.0,88408.0,0.02263119]
[1767118977074,0.27418,88415.0,88408.0,0.01132]
[1767118978373,0.273631,88415.0,88408.0,0.01132]
[1767118978732,0.273631,88415.0,88408.0,0.02263119]
[1767118978926,0.273631,88415.0,88412.0,0.01131068]
[1767118979115,0.27418,88421.0,88413.0,0.01131055]
[1767118979683,0.27418,88421.0,88410.0,0.06786561]
[1767118979684,0.27418,88421.0,88410.0,0.01131093]
[1767118980510,0.54920261,88420.0,88410.0,0.01131093]
[1767118980875,0.54920261,88420.0,88411.0,0.0113108]
[1767118981321,0.27418,88419.0,88409.0,0.01131106]
[1767118981717,0.27418,88419.0,88408.0,0.02263119]
[1767118981922,0.54920261,88418.0,88408.0,0.02263119]
[1767118982144,0.54920261,88418.0,88409.0,0.01131106]
[1767118982459,0.54920261,88418.0,88412.0,0.01131068]
[1767118982670,0.54920261,88422.0,88414.0,0.01131042]
[1767118982804,0.27418,88430.0,88414.0,0.01131042]
[1767118982805,0.54920261,88424.0,88418.0,0.00055]
[1767118983007,0.27418,88427.0,88413.0,0.01131055]
[1767118983327,0.27418,88422.0,88409.0,0.06786603]
[1767118983527,0.27418,88422.0,88412.0,0.01131068]
[1767118983528,0.54920261,88419.0,88412.0,0.01131068]
[1767118983849,0.82338261,88422.0,88410.0,0.01131093]
[1767118984071,0.54920261,88420.0,88410.0,0.01131093]
[1767118984502,0.54920261,88420.0,88411.0,0.0113108]
[1767118984648,0.54920261,88420.0,88412.0,0.01131068]
[1767118984848,0.82338261,88422.0,88412.0,0.01131068]
[1767118985564,0.82338261,88422.0,88413.0,0.01131055]
[1767118985759,0.82338261,88422.0,88412.0,0.01131068]
[1767118988602,0.82338261,88422.0,88413.0,0.01131055]
[1767118988804,0.82338261,88422.0,88412.0,0.01131068]
[1767118989008,0.82338261,88422.0,88415.0,0.01131029]
[1767118989296,0.27418,88422.0,88415.0,0.01132]
[1767118997192,0.27418,88422.0,88414.0,0.01132]
[1767118997391,0.54971727,88425.0,88407.0,0.01131132]
[1767118997392,0.25632,88414.0,88407.0,0.01131132]
[1767118997594,0.25632,88414.0,88406.0,0.06179868]
[1767118997794,0.25632,88414.0,88406.0,0.01212524]
[1767118998000,0.25632,88414.0,88406.0,0.01204067]
[1767118999233,0.25632,88414.0,88406.0,0.01199787]
[1767119000187,0.25632,88414.0,88406.0,0.06855502]
[1767119000405,0.54971727,88419.0,88412.0,0.01131068]
[1767119000613,0.54971727,88419.0,88413.0,0.01131055]
[1767119000902,0.54971727,88423.0,88414.0,0.01131042]
[1767119001103,0.54971727,88430.0,88420.0,0.01130965]
[1767119001850,0.54971727,88430.0,88419.0,0.01130978]
[1767119002251,0.54971727,88430.0,88420.0,0.01130965]
[1767119002472,0.54971727,88430.0,88419.0,0.01130978]
[1767119003189,0.54971727,88430.0,88420.0,0.01130965]
[1767119004191,0.54971727,88430.0,88421.0,0.01130953]
[1767119004405,0.54971727,88430.0,88420.0,0.01130965]
[1767119004591,0.54971727,88430.0,88421.0,0.01130953]
[1767119005306,0.25632,88429.0,88418.0,0.01130991]
[1767119005513,0.25632,88429.0,88419.0,0.01130978]
[1767119005692,0.54971727,88430.0,88419.0,0.01130978]
[1767119005898,0.54971727,88430.0,88415.0,0.06099344]
[1767119006102,0.000549,88419.0,88417.0,0.01131004]
[1767119006637,0.80603727,88430.0,88418.0,0.01130991]
[1767119007568,0.80603727,88430.0,88419.0,0.01130978]
[1767119008309,0.80603727,88430.0,88417.0,0.01131004]
[1767119008516,0.25632,88429.0,88418.0,0.01130991]
[1767119009480,0.25632,88429.0,88419.0,0.01130978]
[1767119009671,0.000549,88419.0,88416.0,0.01131017]
[1767119010040,0.25632,88429.0,88416.0,0.01131017]
[1767119010438,0.25632,88429.0,88415.0,0.07230373]
[1767119010643,0.25632,88429.0,88416.0,0.01131017]
[1767119010850,0.25632,88429.0,88417.0,0.01131004]
[1767119011108,0.25632,88429.0,88418.0,0.01130991]
[1767119011799,0.25632,88429.0,88419.0,0.01130978]
[1767119011957,0.25632,88429.0,88418.0,0.01130991]
[1767119015618,0.25632,88429.0,88419.0,0.01130978]
[1767119016149,0.25632,88429.0,88416.0,0.01131017]
[1767119016362,0.54971727,88430.0,88414.0,0.06099344]
[1767119016363,0.25632,88425.0,88414.0,0.06099344]
[1767119016563,0.000549,88416.0,88411.0,0.07230424]
[1767119016724,0.25632,88420.0,88411.0,0.07230424]
[1767119016725,0.25632,88419.0,88415.0,0.01132]
[1767119017650,0.25632,88419.0,88415.0,0.010771]
[1767119018585,0.25632,88419.0,88412.0,0.01132]
[1767119019463,0.25632,88419.0,88412.0,0.02263068]
[1767119020108,0.25632,88419.0,88412.0,0.01132]
[1767119020450,0.25632,88419.0,88412.0,0.02263068]
[1767119021188,0.25632,88419.0,88412.0,0.01132]
[1767119022593,0.25632,88419.0,88411.0,0.0113108]
[1767119022778,0.25632,88419.0,88410.0,0.06099344]
[1767119024034,0.25632,88419.0,88410.0,0.07230437]
[1767119024687,0.25632,88419.0,88410.0,0.06099344]
[1767119025038,0.25632,88419.0,88410.0,0.07230437]
[1767119025769,0.25632,88419.0,88412.0,0.01131068]
[1767119026241,0.25632,88419.0,88410.0,0.06099344]
[1767119026445,0.25632,88419.0,88411.0,0.0113108]
[1767119027012,0.25632,88419.0,88412.0,0.01131068]
[1767119028951,0.25632,88419.0,88410.0,0.06099344]
[1767119029155,0.25632,88419.0,88410.0,0.11754766]
[1767119029297,0.25632,88419.0,88412.0,0.01131068]
[1767119030764,0.25632,88419.0,88413.0,0.01131055]
[1767119031753,0.25632,88419.0,88414.0,0.01131042]
[1767119032053,0.25632,88419.0,88415.0,0.01131029]
[1767119032477,0.26242,88429.0,88423.0,0.01130927]
[1767119032666,0.01132,88435.0,88423.0,0.01130927]
[1767119032867,0.01132,88435.0,88417.0,0.06099344]
[1767119032868,0.26242,88430.0,88417.0,0.06099344]
[1767119033096,0.00055,88423.0,88413.0,0.06099344]
[1767119033390,0.54971727,88420.0,88412.0,0.07231344]
[1767119033592,0.81213727,88420.0,88412.0,0.01132]
[1767119034420,0.26242,88419.0,88412.0,0.01132]
[1767119034596,0.26242,88419.0,88410.0,0.06099344]
[1767119034937,0.26242,88419.0,88409.0,0.06099344]
[1767119040132,0.26242,88419.0,88409.0,0.0723045]
[1767119040473,0.26242,88419.0,88411.0,0.0113108]
[1767119040619,0.01132,88426.0,88419.0,0.01185878]
[1767119040811,0.01132,88426.0,88417.0,0.05654962]
[1767119040812,0.01132,88426.0,88418.0,0.01130991]
[1767119041021,0.01132,88426.0,88419.0,0.01130978]
[1767119041226,0.01132,88426.0,88418.0,0.01130991]
[1767119041666,0.01132,88426.0,88417.0,0.05654962]
[1767119041667,0.01132,88426.0,88417.0,0.01131004]
[1767119041867,0.26242,88429.0,88417.0,0.02263004]
[1767119042048,0.26242,88429.0,88418.0,0.01130991]
[1767119042256,0.26242,88429.0,88421.0,0.01130953]
[1767119042468,0.26242,88429.0,88420.0,0.01130965]
[1767119043068,0.26242,88429.0,88419.0,0.06785871]
[1767119043069,0.26242,88429.0,88419.0,0.01130978]
[1767119044092,0.26242,88429.0,88420.0,0.01130965]
[1767119044294,0.26242,88429.0,88419.0,0.01130978]
[1767119044505,0.26242,88429.0,88420.0,0.01130965]
[1767119044660,0.26242,88429.0,88419.0,0.01130978]
[1767119044916,0.26242,88429.0,88420.0,0.01130965]
[1767119045122,0.26242,88429.0,88419.0,0.01130978]
[1767119045305,0.26242,88429.0,88417.0,0.07231344]
[1767119045505,0.26242,88429.0,88420.0,0.01130965]
[1767119045943,0.26242,88429.0,88419.0,0.01130978]
[1767119046144,0.26242,88429.0,88420.0,0.01130965]
[1767119046814,0.26242,88429.0,88421.0,0.01130953]
[1767119047212,0.26242,88429.0,88420.0,0.01130965]
[1767119047454,0.26242,88429.0,88421.0,0.01130953]
[1767119047667,0.26242,88429.0,88420.0,0.01130965]
[1767119047866,0.26242,88429.0,88421.0,0.01130953]
[1767119048066,0.26242,88429.0,88420.0,0.01130965]
[1767119048282,0.26242,88429.0,88419.0,0.01130978]
[1767119048493,0.26242,88429.0,88420.0,0.01130965]
[1767119049983,0.26242,88429.0,88420.0,0.06785786]
[1767119050139,0.261871,88429.0,88423.0,0.01130927]
[1767119050337,0.261871,88429.0,88420.0,0.01130965]
[1767119050542,0.261871,88429.0,88419.0,0.01132]
[1767119050750,0.261871,88429.0,88419.0,0.02262978]
[1767119051371,0.261871,88429.0,88419.0,0.01132]
[1767119055450,0.261871,88429.0,88421.0,0.01130953]
[1767119055778,0.25449,88430.0,88423.0,0.01130927]
[1767119056377,0.25449,88430.0,88421.0,0.01130953]
[1767119056758,0.25449,88430.0,88423.0,0.01130927]
[1767119057480,0.25449,88430.0,88421.0,0.01130953]
[1767119057888,0.25449,88430.0,88419.0,0.02262978]
[1767119058442,0.25449,88430.0,88420.0,0.01130965]
[1767119058641,0.80405794,88430.0,88420.0,0.01130965]
[1767119059494,0.80405794,88430.0,88419.0,0.02262978]
[1767119059638,0.80405794,88430.0,88419.0,0.01132]
[1767119059989,0.25449,88430.0,88419.0,0.01132]
[1767119060154,0.80405794,88430.0,88419.0,0.01132]
[1767119060760,0.80405794,88430.0,88419.0,0.02262978]
[1767119063295,0.80405794,88430.0,88419.0,0.01132]
[1767119064727,0.25124,88429.0,88419.0,0.01132]
[1767119065912,0.2513769,88429.0,88419.0,0.01132]
[1767119072129,0.2513769,88429.0,88419.0,0.02262978]
[1767119072324,0.2513769,88429.0,88419.0,0.01132]
[1767119076347,0.2513769,88429.0,88419.0,0.02262978]
[1767119076769,0.2513769,88429.0,88420.0,0.05654829]
[1767119076900,0.2513769,88429.0,88419.0,0.01132]
[1767119077719,0.2513769,88429.0,88420.0,0.01130965]
[1767119078029,0.2513769,88429.0,88419.0,0.02262978]
[1767119078229,0.2513769,88429.0,88420.0,0.01130965]
[1767119079734,0.2513769,88429.0,88427.0,0.05654371]
[1767119079935,0.000149,88432.0,88427.0,0.05654371]
[1767119079936,0.000149,88432.0,88427.0,0.07917241]
[1767119080154,0.000149,88432.0,88428.0,0.25398863]
[1767119080409,0.54941726,88440.0,88429.0,0.0113085]
[1767119080772,0.54941726,88440.0,88430.0,0.01130837]
[1767119080977,0.54941726,88440.0,88429.0,0.0113085]
[1767119081383,0.53232935,88440.0,88429.0,0.0113085]
[1767119081572,0.53246794,88440.0,88432.0,0.01130812]
[1767119081757,0.25124,88444.0,88435.0,0.01130774]
[1767119081758,0.54956794,88442.0,88435.0,0.01130774]
[1767119081995,0.25114615,88444.0,88433.0,0.01130799]
[1767119082160,0.25114615,88444.0,88428.0,0.30367344]
[1767119082161,0.25124,88442.0,88429.0,0.0113085]
[1767119082363,0.54956794,88440.0,88431.0,0.06784912]
[1767119082570,0.54956794,88440.0,88434.0,0.01130786]
[1767119082793,0.52676794,88440.0,88434.0,0.01130786]
[1767119082997,0.24557626,88448.0,88434.0,0.01130786]
[1767119083333,0.54956794,88444.0,88435.0,0.01130774]
[1767119083530,0.54956794,88444.0,88432.0,0.01130812]
[1767119083531,0.54956794,88444.0,88431.0,0.25194825]
[1767119083940,0.80080794,88444.0,88428.0,0.01130863]
[1767119084120,0.54956794,88440.0,88432.0,0.01130812]
[1767119084283,0.25124,88446.0,88433.0,0.01130799]
[1767119084481,0.24554,88448.0,88429.0,0.05654204]
[1767119084687,0.01130595,88449.0,88433.0,0.01130799]
[1767119084688,0.54386794,88440.0,88433.0,0.01130799]
[1767119084928,0.2398823,88449.0,88434.0,0.01130786]
[1767119085129,0.54956794,88443.0,88435.0,0.01130774]
[1767119085370,0.2398823,88449.0,88437.0,0.01130748]
[1767119085572,0.2398823,88449.0,88438.0,0.01130735]
[1767119085784,0.000149,88450.0,88442.0,0.01130684]
[1767119085986,0.000149,88450.0,88442.0,0.02262684]
[1767119086276,0.000149,88450.0,88442.0,0.01132]
[1767119086482,0.000149,88450.0,88442.0,0.01127737]
[1767119086724,0.000149,88450.0,88442.0,0.02258421]
[1767119087299,0.000149,88450.0,88442.0,0.01127737]
[1767119087503,0.000149,88450.0,88442.0,0.02258421]
[1767119088079,0.000149,88450.0,88442.0,0.01127737]
[1767119088298,0.000149,88450.0,88443.0,0.01130671]
[1767119088494,0.000149,88450.0,88442.0,0.02254064]
[1767119088626,0.000149,88450.0,88443.0,0.01130671]
[1767119089374,0.000149,88450.0,88444.0,0.01130658]
[1767119089573,0.000149,88450.0,88445.0,0.01130646]
[1767119089750,0.000149,88450.0,88446.0,0.01130633]
[1767119089977,0.000149,88450.0,88444.0,0.01130658]
[1767119090347,0.000149,88450.0,88442.0,0.02254064]
[1767119090553,0.01116932,88456.0,88444.0,0.01130658]
[1767119090765,0.25937,88457.0,88449.0,0.01130595]
[1767119090958,0.000549,88459.0,88449.0,0.01130595]
[1767119091211,0.000549,88459.0,88448.0,0.01130607]
[1767119091651,0.000549,88459.0,88446.0,0.06783761]
[1767119091652,0.25842059,88459.0,88446.0,0.01130633]
[1767119091853,0.21282059,88459.0,88449.0,0.01132]
[1767119092053,0.16722059,88459.0,88449.0,0.01132]
[1767119092206,0.12165365,88459.0,88449.0,0.01132]
[1767119092418,0.09318387,88459.0,88449.0,0.01132]
[1767119092620,0.07038387,88459.0,88449.0,0.01132]
[1767119092802,0.02482013,88459.0,88449.0,0.01132]
[1767119093009,0.54956794,88460.0,88449.0,0.01132]
[1767119093457,0.80893794,88460.0,88449.0,0.01132]
[1767119093717,0.80893794,88460.0,88449.0,0.010771]
[1767119095449,0.25937,88459.0,88449.0,0.010771]
[1767119095877,0.25937,88459.0,88449.0,0.02207695]
[1767119096495,0.25937,88459.0,88450.0,0.01130582]
[1767119096697,0.25937,88459.0,88449.0,0.02207695]
[1767119096877,0.25937,88459.0,88449.0,0.010771]
[1767119098078,0.25937,88459.0,88449.0,0.02207695]
[1767119098290,0.00019594,88468.0,88452.0,0.26383]
[1767119098609,0.00034032,88469.0,88454.0,0.01130531]
[1767119098807,0.54956794,88464.0,88454.0,0.01130531]
[1767119099158,0.25962252,88469.0,88457.0,0.01130492]
[1767119099371,0.25962252,88469.0,88456.0,0.01130505]
[1767119099779,0.25962252,88469.0,88455.0,0.01130518]
[1767119099910,0.25962252,88469.0,88456.0,0.01130505]
[1767119100129,0.25962252,88469.0,88458.0,0.0113048]
[1767119100346,0.25962252,88469.0,88459.0,0.01130467]
[1767119100545,0.25962252,88469.0,88458.0,0.0113048]
[1767119100744,0.25962252,88469.0,88456.0,0.02262505]
[1767119101306,0.25091,88456.0,88451.0,0.01132]
[1767119101508,0.20532813,88456.0,88451.0,0.01132]
[1767119101716,0.80003992,88461.0,88452.0,0.01132]
[1767119102118,0.25606,88460.0,88452.0,0.01132]
[1767119103000,0.25606,88460.0,88452.0,0.01142669]
[1767119103196,0.25606,88460.0,88450.0,0.01132]
[1767119103423,0.25616661,88460.0,88450.0,0.01132]
[1767119104992,0.25616661,88460.0,88445.0,0.01130646]
[1767119105228,0.54956794,88455.0,88446.0,0.02262633]
[1767119105450,0.54956794,88455.0,88446.0,0.01132]
[1767119105736,0.54956794,88455.0,88433.0,0.06099344]
[1767119105737,0.25606,88451.0,88433.0,0.06099344]
[1767119105936,0.01130684,88442.0,88436.0,0.01132]
[1767119106162,0.01130671,88443.0,88436.0,0.01132]
[1767119106365,0.25606,88444.0,88436.0,0.01127692]
[1767119107293,0.25606,88444.0,88435.0,0.00010444]
[1767119108309,0.25606,88444.0,88435.0,6.311e-05]
[1767119114190,0.54956794,88445.0,88435.0,6.311e-05]
[1767119114833,0.25606,88447.0,88435.0,6.311e-05]
[1767119115175,0.54956794,88445.0,88435.0,6.311e-05]
[1767119115986,0.25606,88447.0,88435.0,6.311e-05]
[1767119116341,0.54956794,88445.0,88435.0,0.0566014]
[1767119117172,0.54956794,88445.0,88436.0,0.01130761]
[1767119117716,0.54956794,88445.0,88437.0,0.01130748]
[1767119117949,0.54956794,88445.0,88436.0,0.01130761]
[1767119118142,0.54956794,88445.0,88435.0,0.01137085]
[1767119118552,0.81095907,88450.0,88435.0,0.01137085]
[1767119118756,0.81095907,88450.0,88436.0,0.01130761]
[1767119119100,0.81095907,88450.0,88437.0,0.01130748]
[1767119120010,0.81095907,88450.0,88436.0,0.01130761]
[1767119120161,0.81095907,88450.0,88437.0,0.01130748]
[1767119121016,0.81095907,88450.0,88436.0,0.01130761]
[1767119121219,0.81095907,88450.0,88437.0,0.01130748]
[1767119122402,0.81095907,88450.0,88435.0,0.06790893]
[1767119122403,0.81095907,88450.0,88432.0,0.01130812]
[1767119122404,0.000549,88437.0,88391.0,0.10155113]
[1767119122605,0.000549,88437.0,88387.0,0.08126279]
[1767119122606,0.01131055,88413.0,88406.0,0.0002726]
[1767119122835,0.01131055,88413.0,88391.0,0.25178]
[1767119122836,0.05655672,88407.0,88391.0,0.25178]
[1767119123032,0.54939907,88401.0,88393.0,0.01131311]
[1767119123345,0.54939907,88401.0,88387.0,0.01132]
[1767119123346,0.26156,88407.0,88401.0,0.00055]
[1767119123553,0.26156,88407.0,88395.0,0.01131285]
[1767119123765,0.26156,88407.0,88396.0,0.01131272]
[1767119123987,0.26166651,88407.0,88396.0,0.01131272]
[1767119124416,0.26166651,88407.0,88394.0,0.02267298]
[1767119124633,0.26166651,88407.0,88394.0,0.01136]
[1767119125083,0.26156,88409.0,88407.0,0.00044349]
[1767119125304,0.26156,88409.0,88398.0,0.01131247]
[1767119125481,0.26156,88409.0,88398.0,0.00010651]
[1767119139250,0.26156,88409.0,88394.0,0.00536]
[1767119139452,0.000106,88398.0,88394.0,0.00536]
[1767119139741,0.54939907,88404.0,88394.0,0.00536]
[1767119139883,0.54930528,88404.0,88394.0,0.00536]
[1767119141734,0.00010659,88409.0,88404.0,0.00055]
[1767119141933,0.00010659,88409.0,88396.0,0.01131272]
[1767119142500,0.00010659,88409.0,88396.0,0.26309272]
[1767119142930,0.00010659,88409.0,88396.0,0.25178]
[1767119144649,0.01141765,88409.0,88396.0,0.25178]
[1767119144851,0.01131132,88407.0,88394.0,0.00536]
[1767119145183,0.54939907,88404.0,88394.0,0.00536]
[1767119145445,0.54939907,88404.0,88394.0,0.00531776]
[1767119145814,0.54939907,88404.0,88394.0,0.01663074]
[1767119146014,0.26156,88408.0,88395.0,0.01131285]
[1767119146216,0.26156,88408.0,88394.0,0.01663074]
[1767119146217,0.26156,88408.0,88394.0,0.01658887]
[1767119146626,0.26156,88408.0,88397.0,0.0113126]
[1767119147179,0.25586,88408.0,88397.0,0.0113126]
[1767119147391,0.24537718,88408.0,88397.0,0.0113126]
[1767119147591,0.24537718,88408.0,88396.0,0.01131272]
[1767119147790,0.24537718,88408.0,88397.0,0.0113126]
[1767119148200,0.00010659,88409.0,88398.0,0.01131247]
[1767119148397,0.24363479,88420.0,88407.0,0.24618]
[1767119148616,0.24363479,88420.0,88403.0,0.01131183]
[1767119148617,0.25517,88418.0,88403.0,0.01131183]
[1767119148767,0.25517,88418.0,88405.0,0.01131157]
[1767119148976,0.25517,88418.0,88404.0,0.0113117]
[1767119149991,0.25517,88418.0,88405.0,0.01131157]
[1767119150193,0.25517,88418.0,88404.0,0.0113117]
[1767119150549,0.25517,88418.0,88406.0,0.01131144]
[1767119150789,0.25517,88418.0,88407.0,0.01131132]
[1767119150934,0.01136,88418.0,88408.0,0.01131119]
[1767119151117,0.01136,88418.0,88404.0,0.31404988]
[1767119151331,0.01136,88418.0,88407.0,0.01131132]
[1767119153271,0.24381,88423.0,88408.0,0.01131119]
[1767119153444,0.01136,88422.0,88408.0,0.24618]
[1767119153650,0.01136,88422.0,88413.0,0.01131055]
[1767119154167,0.01136,88422.0,88412.0,0.01131068]
[1767119154366,0.01136,88422.0,88413.0,0.01131055]
[1767119156322,0.01136,88422.0,88412.0,0.01131068]
[1767119156534,0.01136,88422.0,88413.0,0.01131055]
[1767119157368,0.01136,88422.0,88412.0,0.01131068]
[1767119157809,0.01136,88422.0,88413.0,0.01131055]
[1767119158039,0.01136,88422.0,88412.0,0.01131068]
[1767119159690,0.01136,88422.0,88413.0,0.01131055]
[1767119159890,0.01136,88422.0,88414.0,0.01131042]
[1767119160298,0.01136,88422.0,88413.0,0.01131055]
[1767119160299,0.01136,88422.0,88412.0,0.01131068]
[1767119160549,0.25517,88422.0,88413.0,0.01131055]
[1767119160752,0.25517,88422.0,88412.0,0.01131068]
[1767119161064,0.25517,88422.0,88411.0,0.06786434]
[1767119161269,0.244027,88426.0,88412.0,0.06786369]
[1767119161550,0.244027,88426.0,88414.0,0.01131042]
[1767119161901,0.01136,88425.0,88414.0,0.01131042]
[1767119162118,0.01136,88425.0,88412.0,0.01131068]
[1767119162417,0.25517,88425.0,88411.0,0.0113108]
[1767119162621,0.25517,88425.0,88412.0,0.01131068]
[1767119162823,0.25517,88425.0,88413.0,0.01131055]
[1767119163605,0.25517,88425.0,88411.0,0.0678642]
[1767119164043,0.25517,88425.0,88409.0,0.02267106]
[1767119165108,0.25517,88425.0,88410.0,0.01131093]
[1767119165562,0.25517,88425.0,88409.0,0.02267106]
[1767119165722,0.26647901,88425.0,88409.0,0.02267106]
[1767119166077,0.26647901,88425.0,88409.0,0.01136]
[1767119166283,0.26647901,88425.0,88409.0,0.02267106]
[1767119167100,0.25517,88425.0,88410.0,0.01131093]
[1767119167640,0.26647901,88425.0,88409.0,0.02267106]
[1767119168243,0.25517,88425.0,88409.0,0.02267106]
[1767119168388,0.25517,88425.0,88412.0,0.01131068]
[1767119168584,0.54939907,88422.0,88411.0,0.0113108]
[1767119169071,0.54939907,88422.0,88412.0,0.01131068]
[1767119169220,0.54939907,88422.0,88412.0,0.01126861]
[1767119169788,0.54939907,88422.0,88409.0,0.02267106]
[1767119170039,0.79309907,88422.0,88409.0,0.01136]
[1767119170526,0.79309907,88422.0,88409.0,0.02267106]
[1767119171136,0.79309907,88422.0,88409.0,0.01136]
[1767119171353,0.79309907,88422.0,88409.0,0.02267106]
[1767119171573,0.2437,88421.0,88409.0,0.01136]
[1767119172446,0.2437,88421.0,88409.0,0.02267106]
[1767119172854,0.2437,88421.0,88410.0,0.01131093]
[1767119173186,0.2437,88421.0,88411.0,0.0113108]
[1767119173334,0.2437,88421.0,88412.0,0.01131068]
[1767119174154,0.2437,88421.0,88413.0,0.01131055]
[1767119174571,0.2437,88421.0,88413.0,0.01126689]
[1767119174770,0.2437,88421.0,88412.0,0.01131068]
[1767119175184,0.2437,88421.0,88413.0,0.01131055]
[1767119175338,0.2437,88421.0,88412.0,0.01131068]
[1767119175540,0.2437,88421.0,88412.0,0.0112699]
[1767119175887,0.2437,88421.0,88411.0,0.0113108]
[1767119176659,0.2437,88421.0,88410.0,0.01131093]
[1767119176881,0.2437,88421.0,88411.0,0.0113108]
[1767119177089,0.2437,88421.0,88410.0,0.01131093]
[1767119177624,0.2437,88421.0,88411.0,0.0113108]
[1767119180592,0.79339338,88421.0,88412.0,0.01131068]
[1767119180824,0.79339338,88421.0,88411.0,0.0113108]
[1767119181548,0.79339338,88421.0,88412.0,0.01131068]
[1767119181741,0.54969338,88421.0,88412.0,0.01131068]
[1767119182770,0.54969338,88421.0,88411.0,0.01126896]
[1767119183748,0.54969338,88421.0,88412.0,0.01131068]
[1767119184923,0.54969338,88421.0,88413.0,0.01131055]
[1767119185122,0.54981738,88421.0,88413.0,0.01131055]
[1767119185624,0.54981738,88421.0,88412.0,0.01131068]
[1767119186163,0.54981738,88421.0,88410.0,0.01131093]
[1767119186367,0.54981738,88421.0,88411.0,0.0113108]
[1767119186770,0.54981738,88421.0,88409.0,0.01136]
[1767119187268,0.24339,88420.0,88409.0,0.02267106]
[1767119187586,0.24339,88420.0,88409.0,0.01136]
[1767119187983,0.243514,88420.0,88409.0,0.01136]
[1767119188601,0.243514,88420.0,88410.0,0.01131093]
[1767119189649,0.243514,88420.0,88411.0,0.0113108]
[1767119190015,0.243514,88420.0,88410.0,0.01131093]
[1767119190218,0.243514,88420.0,88411.0,0.0113108]
[1767119190449,0.243514,88420.0,88410.0,0.01131093]
[1767119190658,0.243514,88420.0,88411.0,0.0113108]
[1767119191012,0.243514,88420.0,88412.0,0.01131068]
[1767119191624,0.243514,88420.0,88413.0,0.01131055]
[1767119192902,0.243514,88420.0,88412.0,0.01131068]
[1767119193806,0.243514,88420.0,88411.0,0.0113108]
[1767119194138,0.243514,88420.0,88412.0,0.01131068]
[1767119196032,0.54969338,88423.0,88420.0,0.000319]
[1767119196192,0.0001975,88430.0,88421.0,0.01130953]
[1767119196395,0.00026985,88430.0,88423.0,0.01130927]
[1767119197180,0.00026985,88430.0,88424.0,0.01130914]
[1767119197635,0.00026985,88430.0,88423.0,0.01130927]
[1767119198189,0.00026985,88430.0,88426.0,0.01130889]
[1767119198408,8.5e-07,88430.0,88427.0,0.27317876]
[1767119198604,8.5e-07,88430.0,88427.0,0.26187]
[1767119198838,8.5e-07,88430.0,88426.0,0.01130889]
[1767119199066,8.5e-07,88430.0,88427.0,0.0678525]
[1767119199181,8.5e-07,88430.0,88428.0,0.26187]
[1767119199385,8.5e-07,88430.0,88429.0,0.31841253]
[1767119199640,0.00053057,88437.0,88434.0,0.01130786]
[1767119199784,0.00053057,88437.0,88435.0,0.05653814]
[1767119199785,0.00048057,88437.0,88435.0,0.05653814]
[1767119201253,0.0001975,88442.0,88439.0,0.06784326]
[1767119201449,0.0001975,88442.0,88438.0,0.27317735]
[1767119201768,0.0001975,88442.0,88439.0,0.27317722]
[1767119202189,0.0001975,88442.0,88439.0,0.01130722]
[1767119202828,0.01132,88449.0,88440.0,0.0113071]
[1767119202963,0.01132,88449.0,88441.0,0.01130697]
[1767119203364,0.54969338,88450.0,88443.0,0.01130671]
[1767119203570,0.0001975,88454.0,88451.0,0.01130569]
[1767119203789,0.0001975,88454.0,88452.0,0.05652728]
[1767119204506,0.0001975,88454.0,88451.0,0.06783368]
[1767119204707,0.0001975,88454.0,88452.0,0.26187]
[1767119205276,0.0001975,88454.0,88451.0,0.01130569]
[1767119212715,0.0001975,88454.0,88452.0,0.05652783]
[1767119213347,0.0001975,88454.0,88451.0,0.01130569]
[1767119214531,0.0001975,88454.0,88452.0,0.05652783]
[1767119214718,0.01132,88463.0,88457.0,0.01130492]
[1767119214849,0.00010662,88463.0,88457.0,0.01130492]
[1767119215057,0.00010662,88463.0,88456.0,0.06782972]
[1767119215458,0.00010662,88463.0,88457.0,0.01130492]
[1767119216100,0.00010662,88463.0,88460.0,0.01130454]
[1767119216433,0.00010662,88463.0,88459.0,0.01130467]
[1767119217131,0.00010662,88463.0,88460.0,0.01130454]
[1767119218614,0.000549,88460.0,88459.0,0.01130467]
[1767119218816,0.00010662,88463.0,88459.0,0.01130467]
[1767119220140,0.00010662,88463.0,88460.0,0.01130454]
[1767119220511,0.00010662,88463.0,88460.0,0.06782726]
[1767119220897,0.00010662,88463.0,88460.0,0.06782691]
[1767119222109,0.00010662,88463.0,88460.0,0.01130454]
[1767119223489,0.00010662,88463.0,88460.0,0.06782679]
[1767119223902,0.0004,88470.0,88466.0,0.01130377]
[1767119224108,0.000549,88466.0,88462.0,0.01130428]
[1767119224293,0.000549,88466.0,88463.0,0.01130416]
[1767119224511,0.000549,88466.0,88429.0,0.08135746]
[1767119224512,0.000246,88489.0,88466.0,0.2260752]
[1767119224713,0.000246,88489.0,88438.0,0.000246]
[1767119224714,0.25252,88488.0,88474.0,0.01130275]
[1767119224920,0.00019469,88474.0,88471.0,0.25944]
[1767119225130,0.00055,88474.0,88470.0,0.01130326]
[1767119225351,0.00035531,88474.0,88470.0,0.01130326]
[1767119225565,0.00035531,88474.0,88468.0,0.06782071]
[1767119226053,0.000195,88468.0,88467.0,0.01132]
[1767119226277,0.0004,88514.0,88474.0,0.25944]
[1767119226491,0.2412,88488.0,88485.0,0.01130135]
[1767119226705,0.2412,88488.0,88479.0,0.01130211]
[1767119227160,0.2412,88488.0,88475.0,0.01132]
[1767119227582,0.2412,88488.0,88475.0,0.02262262]
[1767119227792,0.2412,88488.0,88476.0,0.0113025]
[1767119228000,0.2412,88488.0,88475.0,0.01132]
[1767119228214,0.2412,88488.0,88475.0,0.02262262]
[1767119228627,0.54969338,88485.0,88475.0,0.01132]
[1767119229046,0.2412,88488.0,88475.0,0.01132]
[1767119229476,0.56099473,88485.0,88469.0,0.25944]
[1767119229712,0.01163112,88489.0,88457.0,0.01130492]
[1767119229713,0.2412,88473.0,88457.0,0.01130492]
[1767119229923,0.2412,88469.0,88458.0,0.01132]
[1767119230775,0.01130364,88467.0,88458.0,0.01132]